fUST/lending_fUST_20240929
["ID","MTS","AMOUNT","RATE_DAILY","PERIOD"]
[339423977,1727608243917,-217.057806,0.0001481,2]
[339423978,1727608243929,-217.057806,0.0001481,2]
[339423979,1727608243941,-151.98546,0.0001481,2]
[339423980,1727608243951,-151.98546,0.0001481,2]
[339423981,1727608243964,-151.98546,0.0001481,2]
[339423982,1727608243979,-151.98546,0.0001481,2]
[339423983,1727608243988,-168.276617,0.0001481,2]
[339423984,1727608243998,-168.276617,0.0001481,2]
[339423985,1727608244007,-151.0,0.0001481,2]
[339423986,1727608244018,-151.0,0.0001481,2]
[339423987,1727608244031,-151.0,0.00014818,2]
[339423988,1727608244042,-151.0,0.00014818,2]
[339423989,1727608244054,-217.057806,0.00014818,2]
[339423990,1727608244063,-217.057806,0.00014818,2]
[339423991,1727608244072,-217.057806,0.00014818,2]
[339423992,1727608244082,-217.057806,0.00014818,2]
[339423993,1727608244091,-168.276617,0.00014818,2]
[339423994,1727608244101,-168.276617,0.00014818,2]
[339423995,1727608244111,-168.276617,0.00014818,2]
[339423996,1727608244120,-168.276617,0.00014818,2]
[339423997,1727608244130,-151.0,0.00014819,2]
[339423998,1727608244140,-151.0,0.0001482,2]
[339423999,1727608244150,-942.184661,0.0001482,2]
[339424000,1727608244160,-942.184661,0.0001482,2]
[339424001,1727608244169,-151.0,0.0001482,2]
[339424002,1727608244179,-217.057806,0.0001482,2]
[339424003,1727608244188,-217.057806,0.0001482,2]
[339424004,1727608244197,-168.276617,0.0001482,2]
[339424005,1727608244206,-168.276617,0.0001482,2]
[339424006,1727608244215,-152.661827,0.0001483,2]
[339424007,1727608244224,-152.661827,0.0001483,2]
[339424008,1727608244233,-152.661827,0.0001483,2]
[339424009,1727608244243,-152.661827,0.0001483,2]
[339424010,1727608244254,-151.0,0.0001483,2]
[339424011,1727608244265,-942.184661,0.0001483,2]
[339424012,1727608244277,-942.184661,0.0001483,2]
[339424013,1727608244287,-151.0,0.0001483,2]
[339424014,1727608244297,-217.057806,0.0001483,2]
[339424015,1727608244307,-217.057806,0.0001483,2]
[339424016,1727608244318,-151.98546,0.0001483,2]
[339424017,1727608244329,-151.98546,0.0001483,2]
[339424018,1727608244341,-168.276617,0.0001483,2]
[339424019,1727608244351,-168.276617,0.0001483,2]
[339424020,1727608244362,-151.0,0.0001483,2]
[339424021,1727608244377,-500.0,0.00014873,2]
[339424022,1727608244388,-500.0,0.00014873,2]
[339424023,1727608244397,-500.0,0.00014873,2]
[339424024,1727608244408,-500.0,0.00014873,2]
[339424025,1727608244419,-500.0,0.00014873,2]
[339424026,1727608244431,-500.0,0.00014873,2]
[339424027,1727608244442,-500.0,0.00014873,2]
[339424028,1727608244454,-151.0,0.00014873,2]
[339424029,1727608244465,-217.057806,0.00014873,2]
[339424030,1727608244678,-217.057806,0.00014873,2]
[339424031,1727608244690,-168.276617,0.00014873,2]
[339424032,1727608244700,-168.276617,0.00014873,2]
[339424033,1727608244711,-152.661827,0.00014895,2]
[339424034,1727608244721,-152.661827,0.00014895,2]
[339424035,1727608244731,-942.184661,0.00014895,2]
[339424036,1727608244741,-942.184661,0.00014895,2]
[339424037,1727608244753,-151.98546,0.00014895,2]
[339424038,1727608244763,-151.98546,0.00014895,2]
[339424039,1727608244774,-1000.0,0.000149,2]
[339424040,1727608244784,-151.0,0.0001492,2]
[339424041,1727608244795,-181.245628,0.0001492,2]
[339424042,1727608244805,-217.057806,0.0001492,2]
[339424043,1727608244815,-217.057806,0.0001492,2]
[339424044,1727608244826,-217.057806,0.0001492,2]
[339424045,1727608244837,-217.057806,0.0001492,2]
[339424046,1727608244848,-151.98546,0.0001492,2]
[339424047,1727608244858,-151.98546,0.0001492,2]
[339424048,1727608244869,-151.98546,0.0001492,2]
[339424049,1727608244880,-151.985456,0.0001492,2]
[339424050,1727608244891,-168.276617,0.0001492,2]
[339424051,1727608244904,-168.276617,0.0001492,2]
[339424052,1727608244917,-168.276617,0.0001492,2]
[339424053,1727608244926,-168.276617,0.0001492,2]
[339424054,1727608244938,-7129.99040996,0.0001493,2]
[339424055,1727608244949,-942.184661,0.0001493,2]
[339424056,1727608244959,-942.184661,0.0001493,2]
[339424057,1727608244970,-217.057806,0.0001493,2]
[339424058,1727608244982,-217.057806,0.0001493,2]
[339424059,1727608244991,-168.276617,0.0001493,2]
[339424060,1727608245000,-168.276617,0.0001493,2]
[339424061,1727608245009,-500.0,0.00014973,2]
[339424062,1727608245020,-500.0,0.00014973,2]
[339424063,1727608245030,-500.0,0.00014973,2]
[339424064,1727608245040,-500.0,0.00014973,2]
[339424065,1727608245050,-500.0,0.00014973,2]
[339424066,1727608245060,-500.0,0.00014973,2]
[339424067,1727608245070,-183.5,0.00014973,2]
[339424068,1727608245079,-251.06641717,0.00014973,2]
[339424069,1727608245089,-500.0,0.00014973,2]
[339424070,1727608245098,-500.79771524,0.00014973,2]
[339424071,1727608245108,-500.0,0.00014973,2]
[339424072,1727608245118,-152.661827,0.00014988,2]
[339424073,1727608245127,-152.661827,0.00014988,2]
[339424074,1727608245137,-942.184661,0.00014988,2]
[339424075,1727608245146,-942.184661,0.00014988,2]
[339424076,1727608245156,-217.057806,0.00014988,2]
[339424077,1727608245166,-217.057812,0.00014988,2]
[339424078,1727608245175,-168.276617,0.00014988,2]
[339424079,1727608245184,-168.276626,0.00014988,2]
[339424080,1727608245194,-9772.08163121,0.00014988,2]
[339424081,1727608245203,-152.661827,0.0001499,2]
[339424082,1727608245211,-152.661827,0.0001499,2]
[339424083,1727608245220,-1000.0,0.0001499,2]
[339424084,1727608245229,-1000.0,0.0001499,2]
[339424085,1727608245238,-1000.0,0.0001499,2]
[339424086,1727608245248,-1000.0,0.0001499,2]
[339424087,1727608245259,-1000.0,0.0001499,2]
[339424088,1727608245268,-1000.0,0.0001499,2]
[339424089,1727608245278,-1000.0,0.0001499,2]
[339424090,1727608245287,-1000.0,0.0001499,2]
[339424091,1727608245297,-1000.0,0.0001499,2]
[339424092,1727608245307,-1000.0,0.0001499,2]
[339424093,1727608245317,-1000.0,0.0001499,2]
[339424094,1727608245327,-1000.0,0.0001499,2]
[339424095,1727608245337,-942.184661,0.0001499,2]
[339424096,1727608245348,-1000.0,0.0001499,2]
[339424097,1727608245358,-1000.0,0.0001499,2]
[339424098,1727608245368,-1000.0,0.0001499,2]
[339424099,1727608245377,-1000.0,0.0001499,2]
[339424100,1727608245387,-1000.0,0.0001499,2]
[339424101,1727608245396,-1000.0,0.0001499,2]
[339424102,1727608245407,-1000.0,0.0001499,2]
[339424103,1727608245419,-1000.0,0.0001499,2]
[339424104,1727608245430,-942.184661,0.0001499,2]
[339424105,1727608245441,-1000.0,0.0001499,2]
[339424106,1727608245453,-1000.0,0.0001499,2]
[339424107,1727608245463,-1000.0,0.0001499,2]
[339424108,1727608245474,-1000.0,0.0001499,2]
[339424109,1727608245486,-1000.0,0.0001499,2]
[339424110,1727608245497,-1000.0,0.0001499,2]
[339424111,1727608245511,-1000.0,0.0001499,2]
[339424112,1727608245523,-1000.0,0.0001499,2]
[339424113,1727608245534,-1000.0,0.0001499,2]
[339424114,1727608245545,-1000.0,0.0001499,2]
[339424115,1727608245556,-1000.0,0.0001499,2]
[339424116,1727608245568,-1000.0,0.0001499,2]
[339424117,1727608245577,-1000.0,0.0001499,2]
[339424118,1727608245588,-1000.0,0.0001499,2]
[339424119,1727608245598,-1000.0,0.0001499,2]
[339424120,1727608245608,-1000.0,0.0001499,2]
[339424121,1727608245619,-1000.0,0.0001499,2]
[339424122,1727608245631,-1000.0,0.0001499,2]
[339424123,1727608245643,-1000.0,0.0001499,2]
[339424124,1727608245655,-1000.0,0.0001499,2]
[339424125,1727608245666,-1000.0,0.0001499,2]
[339424126,1727608245676,-1000.0,0.0001499,2]
[339424127,1727608245686,-1000.0,0.0001499,2]
[339424128,1727608245694,-1000.0,0.0001499,2]
[339424129,1727608245704,-1000.0,0.0001499,2]
[339424130,1727608245713,-1000.0,0.0001499,2]
[339424131,1727608245722,-1000.0,0.0001499,2]
[339424132,1727608245731,-1000.0,0.0001499,2]
[339424134,1727608245742,-1000.0,0.0001499,2]
[339424135,1727608245754,-1000.0,0.0001499,2]
[339424136,1727608245765,-1000.0,0.0001499,2]
[339424137,1727608245776,-1000.0,0.0001499,2]
[339424138,1727608245787,-1000.0,0.0001499,2]
[339424139,1727608245797,-1000.0,0.0001499,2]
[339424140,1727608245807,-1000.0,0.0001499,2]
[339424141,1727608245817,-1000.0,0.0001499,2]
[339424142,1727608245827,-1000.0,0.0001499,2]
[339424143,1727608245835,-1000.0,0.0001499,2]
[339424144,1727608245845,-1000.0,0.0001499,2]
[339424145,1727608245854,-1000.0,0.0001499,2]
[339424146,1727608245863,-1000.0,0.0001499,2]
[339424147,1727608245873,-1000.0,0.0001499,2]
[339424148,1727608245884,-1000.0,0.0001499,2]
[339424149,1727608245895,-1000.0,0.0001499,2]
[339424150,1727608245906,-1044.73479074,0.0001499,2]
[339424151,1727608245916,-5000.0,0.00015,2]
[339424152,1727608245927,-151.0,0.00015,2]
[339424153,1727608245938,-151.0,0.00015,2]
[339424154,1727608245949,-151.0,0.00015,2]
[339424155,1727608245962,-151.0,0.00015,2]
[339424156,1727608245973,-162.692518,0.00015,2]
[339424157,1727608245985,-372.212189,0.00015,2]
[339424158,1727608245995,-162.692518,0.00015,2]
[339424159,1727608246009,-372.212189,0.00015,2]
[339424160,1727608246021,-151.0,0.00015,2]
[339424161,1727608246031,-942.184661,0.00015,2]
[339424162,1727608246042,-942.184661,0.00015,2]
[339424163,1727608246054,-152.661827,0.00015008,2]
[339424164,1727608246063,-152.661827,0.00015008,2]
[339424165,1727608246073,-151.0,0.00015039,2]
[339424166,1727608246082,-162.692518,0.00015039,2]
[339424167,1727608246092,-162.692518,0.00015039,2]
[339424168,1727608246101,-151.0,0.00015039,2]
[339424169,1727608246112,-162.692518,0.00015073,2]
[339424170,1727608246122,-372.212189,0.00015073,2]
[339424171,1727608246132,-162.692518,0.00015073,2]
[339424172,1727608246142,-372.212189,0.00015073,2]
[339424173,1727608246152,-151.0,0.00015073,2]
[339424174,1727608246163,-152.661827,0.00015073,2]
[339424175,1727608246174,-152.661827,0.00015073,2]
[339424176,1727608246186,-151.0,0.00015073,2]
[339424177,1727608246198,-942.184661,0.00015073,2]
[339424178,1727608246208,-942.184661,0.00015073,2]
[339424179,1727608246219,-152.661827,0.00015078,2]
[339424180,1727608246230,-152.661827,0.00015078,2]
[339424181,1727608246240,-942.184661,0.00015078,2]
[339424182,1727608246251,-942.184661,0.00015078,2]
[339424183,1727608246263,-372.212189,0.00015088,2]
[339424184,1727608246274,-372.212189,0.00015088,2]
[339424185,1727608246285,-372.212189,0.00015088,2]
[339424186,1727608246295,-372.212189,0.00015088,2]
[339424187,1727608246305,-151.0,0.00015088,2]
[339424188,1727608246315,-151.0,0.00015088,2]
[339424189,1727608246324,-151.0,0.00015097,2]
[339424190,1727608246335,-151.0,0.00015097,2]
[339424191,1727608246345,-151.0,0.00015097,2]
[339424192,1727608246357,-162.692518,0.00015099,2]
[339424193,1727608246368,-162.692518,0.00015099,2]
[339424194,1727608246379,-151.0,0.00015099,2]
[339424195,1727608246391,-1360.84941601,0.00015103,7]
[339424196,1727608246401,-2100.0,0.0001515,2]
[339424197,1727608246411,-308.31034324,0.00015321,2]
[339424198,1727608246424,-786.74637526,0.00015321,2]
[339424199,1727608246445,-1.6683835,0.00015321,2]
[339424200,1727608246455,-1045.64909143,0.00015321,2]
[339424201,1727608246466,-372.212189,0.00015342,2]
[339424202,1727608246475,-372.212189,0.00015342,2]
[339424203,1727608246487,-152.661827,0.00015342,2]
[339424204,1727608246497,-152.661827,0.00015342,2]
[339424205,1727608246508,-151.0,0.00015342,2]
[339424206,1727608246520,-942.184661,0.00015342,2]
[339424207,1727608246531,-942.18467,0.00015342,2]
[339424208,1727608246541,-576.183691,0.00015342,2]
[339424209,1727608246552,-162.692518,0.0001552,2]
[339424210,1727608246561,-162.692518,0.0001552,2]
[339424211,1727608246571,-280.88738,0.0001552,2]
[339424212,1727608246581,-500.0,0.00015521,2]
[339424213,1727608246590,-372.212189,0.00015621,2]
[339424214,1727608246600,-367.89686607,0.00015621,2]
[339424215,1727608280100,1800.0,0.0001378,2]
[339424222,1727609247584,4150.0,0.00014115,2]
[339424241,1727609438672,-300.0,0.00014386,2]
[339424242,1727609438687,-214.64144854,0.00014386,2]
[339424243,1727609438698,-500.0,0.00014386,2]
[339424244,1727609438709,-500.0,0.00014386,2]
[339424245,1727609438721,-500.0,0.00014386,2]
[339424246,1727609438730,-500.0,0.00014386,2]
[339424247,1727609438743,-500.0,0.00014386,2]
[339424248,1727609438757,-167.1641587,0.00014386,2]
[339424250,1727609438780,-332.8358413,0.00014386,2]
[339424251,1727609438791,-500.0,0.00014386,2]
[339424252,1727609438801,-500.0,0.00014386,2]
[339424253,1727609438813,-589.09654783,0.00014386,2]
[339424254,1727609438823,-500.0,0.00014386,2]
[339424255,1727609438833,-500.0,0.00014386,2]
[339424256,1727609438843,-500.0,0.00014386,2]
[339424257,1727609438856,-500.0,0.00014386,2]
[339424258,1727609438866,-500.0,0.00014386,2]
[339424259,1727609438877,-500.0,0.00014386,2]
[339424260,1727609438887,-172.7078452,0.00014386,2]
[339424261,1727609438897,-500.0,0.00014386,2]
[339424262,1727609438907,-500.0,0.00014386,2]
[339424263,1727609438918,-500.0,0.00014386,2]
[339424264,1727609438929,-500.0,0.00014386,2]
[339424265,1727609438940,-500.0,0.00014386,2]
[339424266,1727609438950,-500.0,0.00014386,2]
[339424267,1727609438962,-500.0,0.00014386,2]
[339424268,1727609439041,-500.0,0.00014386,2]
[339424269,1727609439052,-500.0,0.00014386,2]
[339424270,1727609439063,-500.0,0.00014386,2]
[339424271,1727609439074,-500.0,0.00014386,2]
[339424272,1727609439083,-500.0,0.00014386,2]
[339424273,1727609439094,-500.0,0.00014386,2]
[339424274,1727609439105,-500.0,0.00014386,2]
[339424275,1727609439115,-500.0,0.00014386,2]
[339424276,1727609439127,-500.0,0.00014386,2]
[339424277,1727609439137,-500.0,0.00014386,2]
[339424278,1727609439146,-500.0,0.00014386,2]
[339424279,1727609439157,-500.0,0.00014386,2]
[339424280,1727609439166,-500.0,0.00014386,2]
[339424281,1727609439179,-500.0,0.00014386,2]
[339424282,1727609439189,-500.0,0.00014386,2]
[339424283,1727609439199,-500.0,0.00014386,2]
[339424284,1727609439208,-500.0,0.00014386,2]
[339424285,1727609439218,-500.0,0.00014386,2]
[339424286,1727609439228,-500.0,0.00014386,2]
[339424287,1727609439238,-500.0,0.00014386,2]
[339424288,1727609439248,-500.0,0.00014386,2]
[339424289,1727609439257,-500.0,0.00014386,2]
[339424290,1727609439268,-500.0,0.00014386,2]
[339424291,1727609439278,-500.0,0.00014386,2]
[339424292,1727609439288,-500.0,0.00014386,2]
[339424293,1727609439298,-500.0,0.00014386,2]
[339424294,1727609439307,-500.0,0.00014386,2]
[339424295,1727609439317,-500.0,0.00014386,2]
[339424296,1727609439327,-500.0,0.00014386,2]
[339424297,1727609439337,-500.0,0.00014386,2]
[339424298,1727609439346,-500.0,0.00014386,2]
[339424299,1727609439356,-500.0,0.00014386,2]
[339424300,1727609439366,-500.0,0.00014386,2]
[339424301,1727609439376,-166.07224557,0.00014386,2]
[339424302,1727609439385,-500.0,0.00014386,2]
[339424303,1727609439397,-500.0,0.00014386,2]
[339424304,1727609439406,-500.0,0.00014386,2]
[339424305,1727609439417,-500.0,0.00014386,2]
[339424306,1727609439427,-500.0,0.00014386,2]
[339424307,1727609439437,-500.0,0.00014386,2]
[339424308,1727609439446,-587.71915602,0.00014387,2]
[339424309,1727609439456,-32773.26805198,0.00014387,2]
[339424310,1727609439466,-524.07164655,0.00014487,2]
[339424311,1727609439475,-500.0,0.00014492,2]
[339424312,1727609439485,-500.0,0.00014492,2]
[339424313,1727609439495,-188.59392255,0.00014492,2]
[339424314,1727609439504,-500.0,0.00014492,2]
[339424315,1727609439514,-307.26907106,0.00014492,2]
[339424316,1727609439523,-204.52086076,0.00014492,2]
[339424317,1727609439534,-190.96528918,0.00014492,2]
[339424318,1727609439543,-500.0,0.00014492,2]
[339424319,1727609439552,-403.92963356,0.00014492,2]
[339424320,1727609439562,-500.0,0.00014492,2]
[339424321,1727609439571,-500.0,0.00014492,2]
[339424322,1727609439580,-13802.5038945,0.00014494,2]
[339424323,1727609439590,-161513.122434,0.00014494,2]
[339424324,1727609439600,-4000.0,0.000145,2]
[339424325,1727609439610,-75870.71212504,0.00014504,2]
[339424326,1727609439619,-2000.00000001,0.00014505,2]
[339424327,1727609439628,-500.0,0.00014573,2]
[339424328,1727609439638,-500.0,0.00014573,2]
[339424329,1727609439648,-500.0,0.00014573,2]
[339424330,1727609439658,-500.0,0.00014573,2]
[339424331,1727609439667,-500.0,0.00014573,2]
[339424332,1727609439678,-500.0,0.00014573,2]
[339424333,1727609439691,-501.28150447,0.00014573,2]
[339424334,1727609439702,-151.0,0.00014576,2]
[339424335,1727609439712,-151.0,0.00014576,2]
[339424336,1727609439722,-41407.5116834,0.00014577,2]
[339424337,1727609439732,-242269.683651,0.00014577,2]
[339424338,1727609439742,-20703.7558417,0.00014586,2]
[339424339,1727609439753,-151.0,0.00014596,2]
[339424340,1727609439765,-151.0,0.00014596,2]
[339424341,1727609439775,-151.0,0.00014596,2]
[339424342,1727609439787,-151.0,0.00014596,2]
[339424343,1727609439798,-151.0,0.00014596,2]
[339424344,1727609439808,-151.0,0.00014796,2]
[339424345,1727609439818,-176.763292,0.00014796,2]
[339424346,1727609439828,-1800.0,0.0001515,2]
[339424347,1727609439838,-547.374507,0.00015342,2]
[339424348,1727609439848,-7067.94404438,0.00015454,2]
[339424349,1727609439858,-296.72232577,0.0001562,2]
[339424350,1727609439869,-8630.66364937,0.0001562,2]
[339424351,1727609439879,-420.0,0.00015825,2]
[339424352,1727609439889,-204.91489784,0.0001588,2]
[339424353,1727609439899,-6901.25194724,0.0001596,2]
[339424354,1727609439909,-20703.7558417,0.0001596,2]
[339424355,1727609439919,-154.32365,0.0001597,2]
[339424356,1727609439930,-151.0,0.0001597,2]
[339424357,1727609439940,-151.0,0.0001597,2]
[339424358,1727609439951,-151.0,0.0001597,2]
[339424359,1727609439961,-151.0,0.0001597,2]
[339424360,1727609439971,-340.01132603,0.00015973,2]
[339424361,1727609439981,-500.0,0.00015973,2]
[339424362,1727609439990,-151.0,0.0001598,2]
[339424363,1727609440000,-252.280072,0.0001598,2]
[339424364,1727609440010,-72094.66280413,0.0001599,2]
[339424365,1727609440019,-13802.5038945,0.0001599,2]
[339424366,1727609440029,-151.0,0.0001599,2]
[339424367,1727609440039,-151.0,0.0001599,2]
[339424368,1727609440049,-95000.0,0.00016,2]
[339424369,1727609440060,-945.83098842,0.00016,7]
[339424370,1727609440070,-337.24817292,0.00016,2]
[339424371,1727609440080,-153.308977,0.00016,2]
[339424372,1727609440090,-151.0,0.00016,2]
[339424373,1727609440111,-154.798489,0.00016,2]
[339424374,1727609440122,-151.0,0.00016,2]
[339424375,1727609440133,-151.0,0.00016,2]
[339424376,1727609440146,-151.0,0.00016,2]
[339424377,1727609440157,-151.0,0.00016,2]
[339424378,1727609440168,-151.0,0.00016,2]
[339424379,1727609440179,-151.0,0.00016,2]
[339424380,1727609440190,-234.810624,0.00016,2]
[339424381,1727609440200,-500.0,0.00016,2]
[339424382,1727609440212,-500.0,0.00016,2]
[339424383,1727609440223,-500.0,0.00016,2]
[339424385,1727609440233,-500.0,0.00016,2]
[339424386,1727609440244,-1800.0,0.0001652,2]
[339424387,1727609440255,-267.47089464,0.00016521,2]
[339424389,1727609440266,-1000.0,0.00016548,2]
[339424391,1727609440276,-1000.0,0.00016548,2]
[339424393,1727609440286,-1000.0,0.00016548,2]
[339424395,1727609440296,-854.87597893,0.00016548,2]
[339424397,1727609440308,-6901.25194724,0.00016578,2]
[339424399,1727609440319,-150.0,0.00016589,2]
[339424401,1727609440330,-525.0,0.00016589,2]
[339424403,1727609440339,-1217.0,0.00016589,2]
[339424405,1727609440349,-150.0,0.00016606,2]
[339424407,1727609440359,-243.047,0.00016606,2]
[339424409,1727609440369,-155.533,0.00016606,2]
[339424411,1727609440382,-214.31,0.00016606,2]
[339424412,1727609440393,-250.0,0.00016606,2]
[339424414,1727609440404,-250.0,0.00016606,2]
[339424415,1727609440415,-3125.62,0.000167,2]
[339424416,1727609440426,-524.07164649,0.00016747,2]
[339424417,1727609440437,-416.7,0.00016875,2]
[339424418,1727609440448,-3222.587,0.00017047,2]
[339424419,1727609440459,-151.0,0.0001711,2]
[339424420,1727609440468,-151.0,0.0001711,2]
[339424422,1727609440479,-416.7,0.00017284,2]
[339424424,1727609440490,-704.0,0.000173,2]
[339424425,1727609440501,-878.44678527,0.00017349,2]
[339424426,1727609440512,-1500.0,0.00017349,2]
[339424427,1727609440522,-1500.0,0.00017349,2]
[339424428,1727609440533,-587.0,0.00017407,2]
[339424429,1727609440543,-1800.0,0.00017616,2]
[339424430,1727609440555,-416.7,0.00017692,2]
[339424431,1727609440566,-212.58241824,0.00017922,2]
[339424432,1727609440576,-313.554,0.00017922,2]
[339424433,1727609440586,-416.7,0.00018101,2]
[339424434,1727609440596,-2000.0,0.00018286,2]
[339424435,1727609440606,-2000.0,0.00018286,2]
[339424436,1727609440617,-1951.618805,0.000185,2]
[339424437,1727609440628,-416.7,0.00018509,2]
[339424438,1727609440640,-1929.15327749,0.0001887,2]
[339424439,1727609440651,-416.7,0.00018918,2]
[339424440,1727609440661,-1000.0,0.00019,2]
[339424441,1727609440675,-524.07164649,0.00019007,2]
[339424442,1727609440691,-6901.25194724,0.00019058,3]
[339424443,1727609440706,-151.0,0.00019078,2]
[339424444,1727609440718,-250.39224,0.00019078,2]
[339424445,1727609440731,-151.0,0.00019078,2]
[339424446,1727609440742,-151.0,0.00019078,2]
[339424447,1727609440753,-151.0,0.00019078,2]
[339424448,1727609440765,-30000.0,0.00019078,2]
[339424449,1727609440775,-823.0,0.00019148,2]
[339424450,1727609440786,-6901.25194724,0.00019158,3]
[339424451,1727609440796,-500.0,0.00019173,2]
[339424452,1727609440806,-500.0,0.00019173,2]
[339424453,1727609440817,-500.0,0.00019178,2]
[339424454,1727609440827,-500.0,0.00019178,2]
[339424455,1727609440839,-500.0,0.00019178,2]
[339424456,1727609440850,-500.0,0.00019178,2]
[339424457,1727609440861,-500.0,0.00019178,2]
[339424458,1727609440873,-526.6066506,0.00019178,2]
[339424459,1727609440883,-566.98379914,0.00019178,2]
[339424460,1727609440893,-151.0,0.00019178,2]
[339424461,1727609440903,-151.0,0.00019178,2]
[339424462,1727609440915,-151.0,0.00019178,2]
[339424463,1727609440925,-510.82,0.00019178,2]
[339424464,1727609440941,-500.0,0.00019178,2]
[339424465,1727609440950,-969.89,0.00019178,2]
[339424466,1727609440961,-500.0,0.00019178,2]
[339424467,1727609440972,-500.0,0.00019178,2]
[339424468,1727609440983,-500.0,0.00019178,2]
[339424469,1727609440994,-500.0,0.00019178,2]
[339424470,1727609441004,-500.0,0.00019178,2]
[339424471,1727609441014,-510.02,0.00019178,2]
[339424472,1727609441025,-500.0,0.00019178,2]
[339424473,1727609441036,-500.0,0.00019178,2]
[339424474,1727609441047,-500.0,0.00019178,2]
[339424475,1727609441058,-500.0,0.00019178,2]
[339424476,1727609441068,-500.0,0.00019178,2]
[339424477,1727609441079,-500.0,0.00019178,2]
[339424478,1727609441090,-500.0,0.00019178,2]
[339424479,1727609441100,-162.45707292,0.00019178,2]
[339424480,1727609441110,-500.0,0.00019178,2]
[339424481,1727609441121,-500.0,0.00019178,2]
[339424482,1727609441131,-500.0,0.00019178,2]
[339424483,1727609441142,-563.96,0.00019178,2]
[339424484,1727609441153,-793.46,0.00019178,2]
[339424485,1727609441165,-500.0,0.00019178,2]
[339424486,1727609441176,-500.0,0.00019178,2]
[339424487,1727609441188,-500.0,0.00019178,2]
[339424488,1727609441198,-500.0,0.00019178,2]
[339424489,1727609441207,-500.0,0.00019178,2]
[339424490,1727609441220,-1621.88,0.00019178,2]
[339424491,1727609441230,-500.0,0.00019178,2]
[339424492,1727609441243,-500.0,0.00019178,2]
[339424493,1727609441256,-500.0,0.00019178,2]
[339424494,1727609441269,-500.0,0.00019178,2]
[339424495,1727609441279,-522.29,0.00019178,2]
[339424496,1727609441292,-502.65638944,0.00019178,2]
[339424497,1727609441302,-500.0,0.00019178,2]
[339424498,1727609441311,-500.0,0.00019178,2]
[339424499,1727609441322,-500.0,0.00019178,2]
[339424500,1727609441333,-500.0,0.00019178,2]
[339424501,1727609441343,-500.0,0.00019178,2]
[339424502,1727609441354,-500.0,0.00019178,2]
[339424503,1727609441364,-500.0,0.00019178,2]
[339424504,1727609441376,-661.67,0.00019178,2]
[339424505,1727609441387,-500.0,0.00019178,2]
[339424506,1727609441398,-500.0,0.00019178,2]
[339424507,1727609441409,-500.0,0.00019178,2]
[339424508,1727609441420,-500.0,0.00019178,2]
[339424509,1727609441431,-500.0,0.00019178,2]
[339424510,1727609441441,-556.72,0.00019178,2]
[339424511,1727609441452,-500.0,0.00019178,2]
[339424512,1727609441464,-200.0,0.00019178,2]
[339424513,1727609441473,-500.0,0.00019178,2]
[339424514,1727609441483,-500.0,0.00019178,2]
[339424515,1727609441493,-500.0,0.00019178,2]
[339424516,1727609441502,-500.0,0.00019178,2]
[339424517,1727609441511,-500.0,0.00019178,2]
[339424518,1727609441521,-392.83383849,0.00019178,2]